[Event "XII Cracow ICC-A 2024"]
[Site "Krakow"]
[Date "2024.06.26"]
[Round "6.1"]
[White "Moussard, Jules"]
[Black "Gumularz, Szymon"]
[Result "1/2-1/2"]
[ECO "A29"]
[WhiteElo "2610"]
[BlackElo "2593"]
[Annotator "TA"]
[PlyCount "60"]
[EventDate "2024.06.20"]
[EventType "swiss"]
[EventCountry "POL"]
[SourceTitle "playchess.com"]
[Source "ChessBase"]
[SourceQuality "1"]
[TimeControl "40/5400+30:1800+30"]

{[%evp 9,60,0,5,0,13,10,3,7,31,12,1,0,8,8,0,1,9,14,2,8,21,9,17,8,23,17,14,2,8,7,7,0,2,0,12,0,0,0,0,0,0,-12,0,0,0,-12,-12,-11,-11,-12,0,0,0]} 1. c4 {[%emt 0:04:33]} Nf6 {[%emt 0:00:18]} 2. Nc3 {[%emt 0:00:10]} e5 {[%emt 0:00:06]} 3. Nf3 {[%emt 0:00:05]} Nc6 {[%emt 0:00:07]} 4. g3 {[%emt 0:00:22]} Bb4 {[%emt 0:06:19]} 5. Nd5 {[%emt 0:00:40]} e4 {[%emt 0:02:17]} 6. Nh4 {[%emt 0:00:25]} O-O {[%emt 0:03:11]} 7. a3 {[%emt 0:01:07]} Bc5 {[%emt 0:01:37]} 8. Bg2 {[%emt 0:02:44]} a5 {[%emt 0:08:28]} 9. O-O {[%emt 0:03:27]} Re8 $1 {[%emt 0:00:24]} 10. d3 {[%emt 0:32:41]} exd3 {[%emt 0:00:40]} 11. Qxd3 {[%emt 0:00:23]} Ne5 {[%emt 0:01:19]} 12. Qc2 {[%emt 0:01:13]} Nxd5 {[%emt 0:16:37]} (12... c6 {feels hotter.} 13. Be3 d6 14. Bxc5 cxd5 15. Bd4 Nxc4 16. Bxf6 Qxf6 17. Bxd5 Nb6) 13. cxd5 {[%emt 0:00:22]} d6 {[%emt 0:00:07]} 14. Bd2 {[%emt 0:02:56]} Ng6 {[%emt 0:03:06]} 15. Nxg6 {[%emt 0:09:30]} hxg6 {[%emt 0:00:05]} 16. e4 {[%emt 0:00:12]} Bd7 {[%emt 0:00:35]} 17. Bc3 {[%emt 0:02:01]} c6 {[%emt 0:01:38] The position is equal.} 18. b4 {[%emt 0:02:04]} axb4 {[%emt 0:00:29]} 19. axb4 {[%emt 0:00:04]} Rxa1 {[%emt 0:00:10]} 20. Bxa1 {[%emt 0:02:07]} (20. Rxa1 $5 Bb6 $8 21. dxc6 Bxc6 22. b5 $11) 20... Bb6 {[%emt 0:00:44]} (20... Bxb4 $2 21. Qb2 f6 22. Qxb4 $18) 21. dxc6 {[%emt 0:06:20]} Bxc6 {[%emt 0:00:28]} 22. Rd1 {[%emt 0:00:29][%cal Ob4b5] b5! would now be deadly.} Qe7 {[%emt 0:02:03][%cal Rc6e4]} 23. Bd4 {[%emt 0:09:28]} Bxd4 {[%emt 0:09:24]} 24. Rxd4 {[%emt 0:00:02]} Qe5 {[%emt 0:00:46]} 25. Qb2 {[%emt 0:03:55]} g5 {[%emt 0:05:55]} 26. h3 {[%emt 0:01:26]} Ra8 {[%emt 0:01:59]} 27. Rd2 {[%emt 0:02:58]} (27. Qd2 $5) 27... Ra1+ {[%emt 0:04:16]} (27... Bxe4 $2 {loses.} 28. Qxe5 dxe5 29. Bxe4 $18) 28. Kh2 {[%emt 0:00:02]} Qxb2 {[%emt 0:00:16]} (28... Bxe4 $2 {too greedy.} 29. Qxe5 dxe5 30. Rd8+ (30. Bxe4 g6 $18) 30... Kh7 31. Bxe4+ $18) 29. Rxb2 {[%emt 0:00:05]} Re1 {[%emt 0:00:30]} 30. Rd2 {[%emt 0:02:44]} Rb1 {[%emt 0:05:22] An uneventful encounter.   Weighted Error Value: White=0.03 (flawless) /Black=0.03 (flawless) .  OK:         	White=7     	Black=12     Best:        	White=1     	---        Strong:       	---       	Black=1} 1/2-1/2

[Event "XII Cracow ICC-A 2024"]
[Site "Krakow"]
[Date "2024.06.26"]
[Round "6.2"]
[White "Mirzoev, Azer"]
[Black "Samunenkov, Ihor"]
[Result "1/2-1/2"]
[ECO "D02"]
[WhiteElo "2448"]
[BlackElo "2532"]
[Annotator "RC"]
[PlyCount "205"]
[EventDate "2024.06.20"]
[EventType "swiss"]
[EventCountry "POL"]
[SourceTitle "playchess.com"]
[Source "ChessBase"]
[SourceQuality "1"]
[TimeControl "40/5400+30:1800+30"]

1. d4 {[%emt 0:00:24]} d5 {[%emt 0:00:08]} 2. Nf3 {[%emt 0:00:07]} Nf6 {[%emt 0:00:08]} 3. c4 {[%emt 0:00:05]} e6 {[%emt 0:00:07]} 4. e3 {[%emt 0:00:04]} Be7 {[%emt 0:00:09]} 5. Nbd2 {[%emt 0:00:08]} O-O {[%emt 0:00:33]} 6. b3 {[%emt 0:00:05]} c5 {[%emt 0:00:37]} 7. cxd5 {[%emt 0:00:13]} Nxd5 {[%emt 0:16:00]} 8. Bb2 {[%emt 0:00:58]} b6 {[%emt 0:06:09]} 9. Bc4 {[%emt 0:03:50]} Nd7 {[%emt 0:02:36]} 10. O-O {[%emt 0:00:26]} Bb7 {[%emt 0:00:09]} 11. a3 {[%emt 0:08:36]} cxd4 {[%emt 0:05:20]} 12. Nxd4 {[%emt 0:01:13]} a6 {[%emt 0:00:16]} 13. Rc1 {[%emt 0:02:41]} Rc8 {[%emt 0:06:09]} 14. b4 {[%emt 0:04:31]} b5 {[%emt 0:03:32]} 15. Bd3 {[%emt 0:02:01]} Rxc1 {[%emt 0:08:13]} 16. Qxc1 {[%emt 0:00:12]} Ne5 {[%emt 0:00:21]} 17. Be2 {[%emt 0:04:04]} Ng6 {[%emt 0:06:39]} 18. N2f3 {[%emt 0:06:14]} Bd6 {[%emt 0:01:26]} 19. Rd1 {[%emt 0:02:50]} Qb8 {[%emt 0:08:19]} 20. h3 {[%emt 0:02:21]} Rc8 {[%emt 0:03:29]} 21. Qa1 {[%emt 0:03:57]} Nb6 {[%emt 0:00:39]} 22. Nb3 {[%emt 0:03:04]} e5 {[%emt 0:01:31]} 23. Na5 {[%emt 0:05:53]} Ba8 {[%emt 0:01:35]} 24. Qa2 {[%emt 0:12:31]} Be7 {[%emt 0:03:09]} 25. Ba1 {[%emt 0:09:04]} Be4 {[%emt 0:08:40]} 26. Ne1 {[%emt 0:01:18]} Bd5 {[%emt 0:07:08]} 27. Qb1 {[%emt 0:00:45]} Qa8 {[%emt 0:02:41]} 28. Bf3 {[%emt 0:01:54]} Rd8 {[%emt 0:02:06]} 29. Rc1 {[%emt 0:02:39]} e4 {[%emt 0:02:23]} 30. Be2 {[%emt 0:01:15]} Bd6 {[%emt 0:00:11]} 31. Nb3 {[%emt 0:06:21]} Ne5 {[%emt 0:00:49]} 32. Nc5 {[%emt 0:00:17]} Nec4 {[%emt 0:01:05]} 33. Nc2 {[%emt 0:02:30]} a5 {[%emt 0:01:01]} 34. Rd1 {[%emt 0:01:34]} a4 {[%emt 0:00:34]} 35. Nd4 {[%emt 0:01:25]} Nxa3 {[%emt 0:02:43]} 36. Qc1 {[%emt 0:00:05]} Nac4 {[%emt 0:00:15]} 37. Nxb5 {[%emt 0:00:18]} Qc6 {[%emt 0:00:46]} 38. Nc3 {[%emt 0:03:11]} Bxc5 {[%emt 0:00:47]} 39. bxc5 {[%emt 0:00:04]} Qxc5 {[%emt 0:00:04]} 40. Nxe4 {[%emt 0:03:04]} Qe7 {[%emt 0:00:56]} 41. Ng3 {[%emt 0:31:30]} Be6 {[%emt 0:03:40]} 42. Bd4 {[%emt 0:00:00]} a3 {[%emt 0:08:04]} 43. Qc3 {[%emt 0:00:00]} f6 {[%emt 0:05:07]} 44. Ra1 {[%emt 0:00:00]} Ra8 {[%emt 0:02:24]} 45. Bd3 {[%emt 0:00:00]} Rc8 {[%emt 0:06:13]} 46. Bxb6 {[%emt 0:00:00]} Nxb6 {[%emt 0:00:07]} 47. Qxa3 {[%emt 0:00:00]} Qxa3 {[%emt 0:00:21]} 48. Rxa3 {[%emt 0:00:00]} Ra8 {[%emt 0:00:07]} 49. Rc3 {[%emt 0:00:00]} Rc8 {[%emt 0:00:14]} 50. Ra3 {[%emt 0:00:00]} Ra8 {[%emt 0:00:09]} 51. Rxa8+ {[%emt 0:00:00]} Nxa8 {[%emt 0:00:06]} 52. Ne2 {[%emt 0:00:00]} Nb6 {[%emt 0:01:28]} 53. Nd4 {[%emt 0:00:00]} Bc4 {[%emt 0:00:41]} 54. Bc2 {[%emt 0:00:00]} Nd5 {[%emt 0:01:16]} 55. h4 {[%emt 0:00:00]} g6 {[%emt 0:02:37]} 56. Kh2 {[%emt 0:00:00]} f5 {[%emt 0:01:07]} 57. Bd1 {[%emt 0:00:00]} Kg7 {[%emt 0:01:21]} 58. g4 {[%emt 0:00:00]} fxg4 {[%emt 0:01:34]} 59. Bxg4 {[%emt 0:00:00]} Kf6 {[%emt 0:00:08]} 60. Kg3 {[%emt 0:00:00]} Nc3 {[%emt 0:00:55]} 61. Bf3 {[%emt 0:00:00]} h6 {[%emt 0:00:53]} 62. Kg2 {[%emt 0:00:00]} Bd3 {[%emt 0:01:11]} 63. Bg4 {[%emt 0:00:00]} Nd5 {[%emt 0:00:36]} 64. Be2 {[%emt 0:00:00]} Bxe2 {[%emt 0:01:31]} 65. Nxe2 {[%emt 0:00:00]} g5 {[%emt 0:00:24]} 66. Kg3 {[%emt 0:00:00]} Ke5 {[%emt 0:00:24]} 67. hxg5 {[%emt 0:00:00]} hxg5 {[%emt 0:00:04]} 68. Kf3 {[%emt 0:00:00]} g4+ {[%emt 0:01:01]} 69. Kg2 {[%emt 0:00:00]} Ke4 {[%emt 0:00:46]} 70. Ng3+ {[%emt 0:00:00]} Kd3 {[%emt 0:00:08]} 71. Nf1 {[%emt 0:00:00]} Nf6 {[%emt 0:00:29]} 72. Nh2 {[%emt 0:00:00]} Ke2 {[%emt 0:00:15]} 73. Nf1 {[%emt 0:00:16]} Kd3 {[%emt 0:00:07]} 74. Ng3 {[%emt 0:00:54]} Nd5 {[%emt 0:00:47]} 75. Nf5 {[%emt 0:00:05]} Ke4 {[%emt 0:01:06]} 76. Nd6+ {[%emt 0:00:04]} Ke5 {[%emt 0:00:29]} 77. Nc4+ {[%emt 0:00:19]} Kf5 {[%emt 0:00:18]} 78. Kg3 {[%emt 0:00:29]} Nf6 {[%emt 0:00:37]} 79. Nd6+ {[%emt 0:00:49]} Ke6 {[%emt 0:00:16]} 80. Nb5 {[%emt 0:00:19]} Ne4+ {[%emt 0:00:09]} 81. Kg2 {[%emt 0:00:04]} Kd5 {[%emt 0:00:40]} 82. Nd4 {[%emt 0:00:06]} Ke5 {[%emt 0:00:18]} 83. Ne2 {[%emt 0:00:03]} Kf6 {[%emt 0:00:37]} 84. Ng3 {[%emt 0:00:05]} Nd2 {[%emt 0:00:07]} 85. Ne2 {[%emt 0:00:40]} Kf5 {[%emt 0:01:07]} 86. Nc3 {[%emt 0:01:27]} Kg5 {[%emt 0:00:05]} 87. Nd5 {[%emt 0:00:57]} Kf5 {[%emt 0:00:21]} 88. Nf4 {[%emt 0:00:06]} Kg5 {[%emt 0:00:30]} 89. Ne6+ {[%emt 0:01:01]} Kf6 {[%emt 0:00:11]} 90. Nc5 {[%emt 0:00:06]} Kg5 {[%emt 0:00:41]} 91. Kh2 {[%emt 0:00:10]} Nf1+ {[%emt 0:00:33]} 92. Kg1 {[%emt 0:00:04]} Nd2 {[%emt 0:00:03]} 93. Kg2 {[%emt 0:00:04]} Kf5 {[%emt 0:00:34]} 94. Kg3 {[%emt 0:00:11]} Nf1+ {[%emt 0:00:28]} 95. Kh4 {[%emt 0:01:07]} g3 {[%emt 0:00:12]} 96. fxg3 {[%emt 0:00:04]} Nxe3 {[%emt 0:00:05]} 97. Kh5 {[%emt 0:00:03]} Kf6 {[%emt 0:00:08]} 98. Ne4+ {[%emt 0:00:21]} Kg7 {[%emt 0:00:05]} 99. Nd2 {[%emt 0:00:11]} Nf5 {[%emt 0:00:10]} 100. g4 {[%emt 0:00:11]} Nh6 {[%emt 0:00:06]} 101. g5 {[%emt 0:00:04]} Nf7 {[%emt 0:00:04]} 102. g6 {[%emt 0:00:03]} Ne5 {[%emt 0:00:04]} 103. Nc4 {[%emt 0:00:07]} 1/2-1/2

[Event "XII Cracow ICC-A 2024"]
[Site "Krakow"]
[Date "2024.06.26"]
[Round "6.3"]
[White "Kosakowski, Jakub"]
[Black "Drozdowski, Kacper"]
[Result "1/2-1/2"]
[ECO "B04"]
[WhiteElo "2480"]
[BlackElo "2448"]
[Annotator "TA"]
[PlyCount "81"]
[EventDate "2024.06.20"]
[EventType "swiss"]
[EventCountry "POL"]
[SourceTitle "playchess.com"]
[Source "ChessBase"]
[SourceQuality "1"]
[TimeControl "40/5400+30:1800+30"]

{[%evp 17,81,17,12,3,9,8,12,10,24,15,20,19,7,0,5,0,0,0,18,16,16,7,6,8,21,0,0,0,21,0,14,17,106,92,116,123,129,76,73,85,84,83,54,80,101,34,89,8,10,12,40,0,47,0,0,0,33,0,33,28,30,0,25,0,30,0]} 1. e4 {[%emt 0:00:43]} Nf6 {[%emt 0:00:07]} 2. e5 {[%emt 0:00:56]} Nd5 {[%emt 0:00:06]} 3. d4 {[%emt 0:01:18]} d6 {[%emt 0:00:07]} 4. Nf3 {[%emt 0:03:38]} dxe5 {[%emt 0:00:55]} 5. Nxe5 {[%emt 0:00:19]} g6 {[%emt 0:00:57]} 6. Be2 {[%emt 0:04:34]} Bg7 {[%emt 0:00:44]} 7. Nf3 {[%emt 0:02:45]} O-O {[%emt 0:01:49]} 8. O-O {[%emt 0:04:51]} Bf5 {[%emt 0:05:21]} 9. c3 {[%emt 0:16:17]} c6 {[%emt 0:01:40]} 10. Na3 {[%emt 0:01:46]} Nd7 {[%emt 0:03:44]} 11. Nh4 {[%emt 0:04:41]} Be6 {[%emt 0:01:29]} 12. Re1 {[%emt 0:01:18] The position is equal.} b5 {[%emt 0:06:53]} 13. Nc2 {[%emt 0:04:52]} N7b6 {[%emt 0:02:25]} 14. Bf1 {[%emt 0:00:52]} a5 {[%emt 0:05:56]} 15. Bg5 {[%emt 0:10:50]} a4 {[%emt 0:08:52][%cal Oa4a3]} 16. Qd2 {[%emt 0:02:37]} Qd6 {[%emt 0:01:50]} 17. Bh6 {[%emt 0:03:48]} Bxh6 {[%emt 0:12:31]} 18. Qxh6 {[%emt 0:00:05]} Qf4 {[%emt 0:00:36]} 19. Qxf4 {[%emt 0:00:10]} Nxf4 {[%emt 0:00:02]} 20. Nf3 {[%emt 0:01:26]} Rfc8 {[%emt 0:12:55]} 21. Ne5 {[%emt 0:06:48]} Nfd5 {[%emt 0:04:04]} (21... f6 $5 22. g3 fxe5 23. gxf4 Bf5 $11) 22. Rac1 {[%emt 0:04:25]} Kf8 {[%emt 0:03:06]} 23. g3 {[%emt 0:02:45]} Nf6 {[%emt 0:03:33]} 24. Nb4 {[%emt 0:01:12]} a3 {[%emt 0:06:36]} (24... Bd5 $11) 25. b3 $16 {[%emt 0:01:00] White is more active.} (25. Nbxc6 $2 axb2 (25... Bxa2 26. bxa3 Bc4 27. Bxc4 $14) 26. Rb1 Na4 (26... Bxa2 27. Rxb2 Nbd5 28. Rxb5 $16) (26... Rxa2 27. Nb4 $17) 27. Bxb5 Bxa2 $19) 25... c5 {[%emt 0:00:30]} 26. dxc5 {[%emt 0:00:53]} Rxc5 {[%emt 0:00:02] [#]} 27. Nbd3 {[%emt 0:05:40]} (27. Bg2 $142 $1 {[%cal Rg2a8]} Ra7 28. Nbc6) 27... Rc7 {[%emt 0:00:07]} 28. Nf4 {[%emt 0:01:59]} Nbd5 {[%emt 0:03:07]} 29. Nxe6+ {[%emt 0:04:44]} fxe6 {[%emt 0:00:03]} 30. c4 {[%emt 0:00:39]} bxc4 {[%emt 0:05:01]} 31. Nxc4 {[%emt 0:00:36]} ({Don't play} 31. Rxc4 $6 Rxc4 32. Bxc4 Nb4 $11) (31. Bxc4 $16 Nb4 32. Re2 (32. Bxe6 $2 Rxc1 33. Rxc1 Nxa2 $19)) 31... Ra6 {[%emt 0:02:30]} (31... Nb4 $14) 32. Rc2 {[%emt 0:02:05]} (32. Ne5 $16 Rxc1 33. Rxc1) 32... Nb4 $11 {[%emt 0:00:27] A dynamic duo of knights.} 33. Rce2 {[%emt 0:01:06][%cal Of1g2]} Rca7 {[%emt 0:00:35]} 34. Rd2 {[%emt 0:03:33]} (34. Rxe6 $2 {loses.} Rxe6 (34... Nxa2 35. Rxa6 Rxa6 36. Ra1 $16) 35. Rxe6 Nxa2 $19) 34... Nfd5 {[%emt 0:00:14]} (34... Rd7 $11) 35. Ne5 {[%emt 0:01:06]} (35. Bd3 $14) 35... Rd6 {[%emt 0:00:39] [#] Hoping for ...Nc3.} 36. Nc4 $1 {[%emt 0:00:29]} Rc6 {[%emt 0:01:22]} 37. Bh3 {[%emt 0:01:02]} Raa6 {[%emt 0:02:25]} 38. Bg2 {[%emt 0:01:06]} Rc7 {[%emt 0:01:27]} 39. Bh3 {[%emt 0:00:32]} Rcc6 {[%emt 0:02:59]} 40. Bg2 {[%emt 0:00:02]} Rc7 {[%emt 0:01:09]} 41. Bh3 {[%emt 0:05:13] Weighted Error Value: White=0.17 (very precise) /Black=0.16 (very precise) .  Mistake:       	White=4     	Black=3      Inaccurate:     	White=3     	Black=3      OK:         	White=8     	Black=11     Best:        	White=2     	---        Strong:       	White=1     	---} 1/2-1/2

[Event "XII Cracow ICC-A 2024"]
[Site "Krakow"]
[Date "2024.06.26"]
[Round "6.4"]
[White "Rozentalis, Eduardas"]
[Black "Sieciechowicz, Marcin"]
[Result "1-0"]
[ECO "C07"]
[WhiteElo "2476"]
[BlackElo "2405"]
[Annotator "TA"]
[PlyCount "81"]
[EventDate "2024.06.20"]
[EventType "swiss"]
[EventCountry "POL"]
[SourceTitle "playchess.com"]
[Source "ChessBase"]
[SourceQuality "1"]
[TimeControl "40/5400+30:1800+30"]

{[%evp 9,81,22,9,16,26,17,27,0,0,0,0,0,1,0,32,4,31,6,22,0,28,33,27,22,86,55,66,66,98,87,109,95,114,121,212,186,207,207,209,216,283,287,349,352,348,336,410,411,425,403,436,434,432,432,595,606,920,914,821,697,808,781,841,814,851,806,1161,1143,1184,1218,1397,1378,1733,1659]} 1. e4 {[%emt 0:00:03]} e6 {[%emt 0:00:18]} 2. d4 {[%emt 0:00:11]} d5 {[%emt 0:00:06]} 3. Nd2 {[%emt 0:00:09]} c5 {[%emt 0:00:11]} 4. exd5 {[%emt 0:00:45]} Qxd5 {[%emt 0:00:17]} 5. dxc5 {[%emt 0:00:23]} Qxc5 {[%emt 0:01:10]} 6. Ngf3 {[%emt 0:00:29]} Nf6 {[%emt 0:00:52] Repels Ne4} 7. Bd3 {[%emt 0:00:56]} Be7 {[%emt 0:02:30]} 8. Qe2 {[%emt 0:01:21] White has an edge.} Nbd7 {[%emt 0:03:05]} 9. O-O {[%emt 0:03:31]} O-O {[%emt 0:00:51]} 10. a4 {[%emt 0:00:16]} Qc7 {[%emt 0:08:57]} 11. a5 {[%emt 0:04:38]} Nd5 {[%emt 0:02:45]} 12. Nb3 {[%emt 0:07:21]} Nf4 {[%emt 0:05:25]} 13. Bxf4 {[%emt 0:03:35]} Qxf4 {[%emt 0:00:03]} 14. Rfd1 {[%emt 0:01:21]} Nc5 {[%emt 0:05:44]} 15. Nxc5 {[%emt 0:04:46]} Bxc5 {[%emt 0:00:10]} 16. c3 {[%emt 0:02:49]} a6 {[%emt 0:02:33]} (16... g6 $11 {keeps the balance.}) 17. Bc2 {[%emt 0:03:37]} g6 {[%emt 0:03:51]} 18. Ra4 {[%emt 0:06:06]} Qf6 {[%emt 0:08:14] [#] Black is now going downhill.} 19. Rc4 $1 {[%emt 0:06:12]} Ba7 {[%emt 0:00:52]} 20. Qe5 $36 {[%emt 0:17:20][%mdl 2048] White is on the roll. White has more active pieces. The black rooks are passive.} Qxe5 {[%emt 0:15:18]} 21. Nxe5 {[%emt 0:00:16][%cal Bf3e5,Be5c4,Bc4b6][%mdl 32]} b5 {[%emt 0:00:26] [#]} (21... Kg7 $16 {was necessary.} 22. g3 h6) 22. Be4 $1 $18 {[%emt 0:02:12][%cal Bc2e4,Be4a8,Ba8d5,Bd5c4,Bc4a6,Ba6b5][%mdl 32]} bxc4 {[%emt 0:09:30]} 23. Bxa8 {[%emt 0:00:35]} f6 {[%emt 0:01:44]} 24. Nxc4 {[%emt 0:02:01]} e5 {[%emt 0:00:12][%cal Be6e5,Be5e4][%mdl 32]} 25. Nb6 {[%emt 0:04:25]} Bf5 {[%emt 0:01:42]} 26. Bd5+ {[%emt 0:02:57]} Kg7 {[%emt 0:00:09]} 27. Bc4 {[%emt 0:00:38]} e4 {[%emt 0:07:40]} 28. Bxa6 {[%emt 0:02:16]} Re8 {[%emt 0:00:01]} 29. Kf1 {[%emt 0:09:03]} Bb8 {[%emt 0:00:16]} 30. Bb5 {[%emt 0:01:18] White is clearly winning.} Re5 {[%emt 0:01:15]} 31. Rd5 {[%emt 0:01:13]} Re7 {[%emt 0:01:45]} 32. Bd7 {[%emt 0:00:53]} Be6 {[%emt 0:00:04]} 33. Bxe6 {[%emt 0:01:31] Threatens to win with Rd7.} Rxe6 {[%emt 0:00:01][%mdl 4096] Endgame. KRB-KRN} 34. h3 {[%emt 0:03:03]} e3 {[%emt 0:00:16]} 35. fxe3 {[%emt 0:00:35]} Rxe3 {[%emt 0:00:02]} 36. Kf2 {[%emt 0:00:22]} Re6 {[%emt 0:00:17]} 37. c4 {[%emt 0:02:24][%cal Bc3c4,Bc4c5,Bc5c6][%mdl 32]} Bf4 {[%emt 0:00:51]} 38. c5 {[%emt 0:01:13]} Be3+ {[%emt 0:00:05]} 39. Kf3 {[%emt 0:01:02]} Bg1 {[%emt 0:00:12]} 40. g4 {[%emt 0:00:25]} Re1 {[%emt 0:00:33]} 41. c6 {[%emt 0:31:29] Weighted Error Value: White=0.07 (flawless) /Black=0.28 (precise) .  Mistake:       	---       	Black=2      Inaccurate:     	White=2     	Black=6      OK:         	White=17    	Black=8      Strong:       	White=2     	---} 1-0

[Event "XII Cracow ICC-A 2024"]
[Site "Krakow"]
[Date "2024.06.26"]
[Round "6.5"]
[White "Vetoshko, Volodymyr"]
[Black "Karolczuk, Iwo"]
[Result "1-0"]
[ECO "A21"]
[WhiteElo "2505"]
[BlackElo "2293"]
[Annotator "TA"]
[PlyCount "79"]
[EventDate "2024.06.20"]
[EventType "swiss"]
[EventCountry "POL"]
[SourceTitle "playchess.com"]
[Source "ChessBase"]
[SourceQuality "1"]
[TimeControl "40/5400+30:1800+30"]

{[%evp 9,79,6,9,7,19,23,14,13,18,19,24,12,20,27,20,20,39,22,81,75,82,73,78,40,102,104,99,101,108,85,123,119,163,155,163,173,180,177,172,174,206,165,173,152,152,158,141,147,333,315,359,311,344,347,356,359,408,394,427,296,592,487,452,0,628,559,699,546,677,679,846,698]} 1. c4 {[%emt 0:02:37]} e5 {[%emt 0:00:07]} 2. Nc3 {[%emt 0:00:27]} Bb4 {[%emt 0:00:37]} 3. Nd5 {[%emt 0:04:01]} a5 {[%emt 0:00:19]} 4. Nf3 {[%emt 0:02:38]} d6 {[%emt 0:00:32]} 5. a3 {[%emt 0:01:35]} Bc5 {[%emt 0:00:06]} 6. e3 {[%emt 0:00:37]} Nd7 {[%emt 0:01:28]} 7. d4 {[%emt 0:02:40]} Ba7 {[%emt 0:00:08]} 8. Be2 {[%emt 0:06:51] The position is equal.} c6 {[%emt 0:00:17]} 9. Nc3 {[%emt 0:00:05]} Ngf6 {[%emt 0:00:23]} 10. O-O {[%emt 0:02:25]} O-O {[%emt 0:00:41]} 11. b4 {[%emt 0:04:33]} Re8 {[%emt 0:14:44]} 12. d5 {[%emt 0:08:00]} e4 {[%emt 0:09:55]} 13. Nd2 {[%emt 0:01:58]} c5 {[%emt 0:07:13]} (13... cxd5 $11 14. cxd5 Bb8) 14. bxa5 {[%emt 0:07:03]} Bb8 {[%emt 0:01:09]} 15. Bb2 {[%emt 0:01:03]} Qe7 {[%emt 0:05:52][%cal Ob8c7]} 16. Qb1 {[%emt 0:01:59]} Rxa5 {[%emt 0:07:43] White now steadily converts the win.} (16... Bc7 $14) 17. Bd1 $16 {[%emt 0:01:47][%cal Be2d1,Bd1c2,Bc2e4,Be4f5][%mdl 32]} Nb6 {[%emt 0:08:09]} 18. Ne2 {[%emt 0:08:26] [#] Strongly threatening Bxf6.} Ra6 {[%emt 0:11:47]} 19. Ng3 {[%emt 0:02:14]} Nbd7 {[%emt 0:00:55]} 20. Bc2 {[%emt 0:02:43] White is more active.} Rb6 {[%emt 0:00:28]} 21. Ngxe4 {[%emt 0:10:30]} ({Resist} 21. Ndxe4 Nxe4 22. Nxe4 (22. Bxe4 g6 $16) 22... Ne5 $16) 21... Nxe4 {[%emt 0:00:52]} 22. Bxe4 {[%emt 0:00:48]} Qh4 {[%emt 0:01:42][%cal Oe8e4]} 23. Bf5 {[%emt 0:02:17]} Bc7 {[%emt 0:03:19]} 24. Qc2 {[%emt 0:00:37]} Bd8 {[%emt 0:01:11]} 25. Bc3 {[%emt 0:02:07]} Bf6 {[%emt 0:02:44]} 26. Bxf6 {[%emt 0:08:17]} Nxf6 {[%emt 0:00:30]} 27. Bxc8 {[%emt 0:00:09]} Rxc8 {[%emt 0:00:07]} 28. Rfb1 {[%emt 0:01:39]} Ng4 $2 {[%emt 0:01:36] [#]} (28... Rxb1+ $16 29. Rxb1 Rb8) 29. Nf3 $18 {[%emt 0:00:20]} (29. Rxb6 Qxf2+ (29... Qxh2+ $2 {too greedy.} 30. Kf1 $18) 30. Kh1 Nxe3 $16) 29... Qf6 {[%emt 0:00:52]} 30. Rxb6 {[%emt 0:01:04]} Qxa1+ {[%emt 0:00:07]} 31. Rb1 {[%emt 0:00:37]} Qf6 {[%emt 0:00:37]} 32. Rxb7 {[%emt 0:00:24]} g6 {[%emt 0:00:40]} 33. h3 {[%emt 0:02:29]} Nh6 {[%emt 0:00:45]} 34. Qb2 {[%emt 0:00:40]} Qd8 {[%emt 0:00:48]} (34... Qxb2 35. Rxb2 f6) 35. Qb6 {[%emt 0:01:22]} Qf6 {[%emt 0:00:08]} 36. Qb2 {[%emt 0:01:21]} Qd8 {[%emt 0:00:06]} 37. Nd2 {[%emt 0:01:02] White is clearly winning.} Qe8 {[%emt 0:00:27]} 38. Qf6 {[%emt 0:01:39]} Qa4 {[%emt 0:00:45]} 39. Qxd6 {[%emt 0:01:36]} Qxa3 {[%emt 0:00:13]} 40. Rb8 {[%emt 0:02:33] Weighted Error Value: White=0.29 (precise) /Black=0.41.  Loses game:     	---       	Black=1      Mistake:       	---       	Black=3      Inaccurate:     	White=2     	Black=2      OK:         	White=13    	Black=9      Best:        	White=1     	---} 1-0